bitfinex/quotes_ETHUSD_20241001
["timestamp","ask_amount","ask_price","bid_price","bid_amount"]
[1727808136068,3.98425,2509.9,2509.3,6.98504]
[1727808136271,0.7709,2510.2,2509.3,0.8238]
[1727808136272,3.98471,2509.6,2509.3,0.8238]
[1727808136484,3.98497,2509.5,2509.1,3.0]
[1727808136685,18.89917172,2509.7,2509.0,3.98564]
[1727808136686,14.91451172,2509.7,2509.0,3.98564]
[1727808136984,18.89911172,2509.7,2509.1,3.98537]
[1727808137284,18.89916172,2509.7,2509.1,3.98537]
[1727808137453,18.89916172,2509.7,2509.1,3.98536]
[1727808137653,18.89916172,2509.7,2509.2,3.98525]
[1727808137888,3.98473,2509.6,2509.1,3.98536]
[1727808138091,14.91451172,2509.7,2509.1,3.98536]
[1727808138244,14.91451172,2509.7,2509.2,3.98532]
[1727808138245,3.98471,2509.6,2509.2,3.98532]
[1727808139149,3.98542,2509.2,2508.8,4.80975]
[1727808139385,3.98557,2509.1,2508.5,4.80383]
[1727808139546,18.89960172,2509.4,2508.8,3.9859]
[1727808139759,14.91451172,2509.4,2509.1,3.98547]
[1727808139964,14.91451172,2509.7,2509.2,3.98524]
[1727808140892,14.91451172,2509.7,2509.3,3.98507]
[1727808141190,14.91451172,2510.2,2509.2,3.0]
[1727808141388,3.98423,2509.9,2509.3,4.36679]
[1727808141549,7.96858,2509.9,2509.3,4.36679]
[1727808141877,3.98423,2509.9,2509.3,4.36679]
[1727808142207,14.91451172,2510.1,2509.2,3.0]
[1727808142208,3.98478,2509.6,2509.2,3.0]
[1727808142484,3.98525,2509.3,2508.8,0.7686]
[1727808142696,3.98528,2509.3,2508.8,4.75456]
[1727808142894,3.98528,2509.3,2508.8,1.642656]
[1727808143097,3.98528,2509.3,2508.8,0.7686]
[1727808143098,3.98557,2509.1,2508.8,0.7686]
[1727808143279,0.07885168,2509.0,2508.6,3.98624]
[1727808143455,0.07885168,2509.0,2508.5,4.81682]
[1727808143647,0.07885168,2509.0,2508.5,4.81683]
[1727808143897,3.98518,2509.3,2508.8,3.98581]
[1727808144052,18.89954172,2509.4,2508.6,3.98618]
[1727808144053,4.06404949,2509.2,2508.6,3.98618]
[1727808144253,8.04952949,2509.2,2508.6,4.61576971]
[1727808144489,4.06404949,2509.2,2508.7,3.98604]
[1727808144795,0.07871949,2509.2,2508.9,3.9857]
[1727808145004,0.07871949,2509.2,2509.1,4.76009]
[1727808145171,4.75251,2509.8,2509.2,3.98525]
[1727808145172,4.75238,2509.8,2509.2,3.98525]
[1727808145493,3.98455,2509.7,2509.2,7.97045]
[1727808145654,4.75238,2509.8,2509.2,3.9852]
[1727808145861,4.75238,2509.8,2509.3,3.98508]
[1727808146403,3.98427,2509.9,2509.5,3.98485]
[1727808146701,3.98427,2509.9,2509.3,3.98508]
[1727808146702,3.98443,2509.8,2509.3,3.98508]
[1727808146861,3.98463,2509.7,2509.1,9.62782947]
[1727808147068,3.98498,2509.5,2509.1,0.7746]
[1727808147403,3.98498,2509.5,2509.0,6.98564]
[1727808147598,4.77268,2509.5,2508.9,3.98576]
[1727808147765,3.98518,2509.3,2508.9,3.98576]
[1727808148576,0.7877,2509.5,2508.8,0.7526]
[1727808148777,3.98439,2509.8,2509.2,3.98532]
[1727808148978,15.66741172,2510.1,2509.3,0.398532]
[1727808149194,3.98468,2509.7,2509.2,3.98532]
[1727808149505,3.98468,2509.7,2509.2,7.97055]
[1727808149668,3.9844,2509.8,2509.3,3.98506]
[1727808149863,3.9844,2509.8,2509.2,3.98523]
[1727808150293,3.9844,2509.8,2509.3,3.98515]
[1727808150481,3.9844,2509.8,2509.3,4.782188]
[1727808151761,18.89869172,2510.0,2509.5,4.75934]
[1727808151978,3.98444,2509.8,2509.3,4.782138]
[1727808152222,14.91451172,2510.0,2509.0,3.98553]
[1727808152383,3.98497,2509.5,2509.0,3.98553]
[1727808153102,3.98505,2509.4,2508.9,0.7745]
[1727808153421,3.98533,2509.2,2508.9,0.7745]
[1727808153776,3.98533,2509.2,2508.7,3.9861]
[1727808153973,0.07956656,2509.1,2508.7,4.92255497]
[1727808154173,0.07956656,2509.1,2508.8,3.98594]
[1727808154370,0.07956656,2509.1,2508.7,0.93645497]
[1727808154371,0.07956656,2509.1,2508.9,3.98581]
[1727808154575,14.91451172,2509.4,2509.0,3.98565]
[1727808155014,14.91451172,2509.4,2508.9,3.98581]
[1727808155304,14.91451172,2509.4,2509.1,3.98541]
[1727808155681,18.89953172,2509.4,2508.9,4.4779365]
[1727808156052,3.98533,2509.2,2508.7,4.92245497]
[1727808156719,3.98533,2509.2,2508.7,3.986]
[1727808157075,3.9855,2509.1,2508.6,4.74897]
[1727808157378,3.9855,2509.1,2508.7,3.98609]
[1727808157577,3.98518,2509.3,2508.8,3.98596]
[1727808157788,3.98518,2509.3,2508.8,3.98588]
[1727808158017,3.98518,2509.3,2508.6,0.7627]
[1727808158215,3.98536,2509.2,2508.6,4.74887]
[1727808158420,3.98536,2509.2,2508.7,0.474887]
[1727808158573,3.98518,2509.3,2508.7,0.474887]
[1727808158916,3.9855,2509.1,2508.7,4.460997]
[1727808159095,7.97109,2509.1,2508.7,0.474887]
[1727808159294,3.9857,2509.0,2508.6,4.74887]
[1727808159510,3.98551,2509.1,2508.6,4.74883]
[1727808160244,3.98581,2508.9,2508.6,0.7627]
[1727808160450,3.98581,2508.9,2508.5,3.98643]
[1727808160451,3.98551,2509.1,2508.5,3.98643]
[1727808160606,3.98551,2509.1,2508.6,3.98622]
[1727808160607,7.97109,2509.1,2508.6,3.98622]
[1727808160810,3.98551,2509.1,2508.6,3.98622]
[1727808161346,4.06495612,2509.0,2508.5,3.98636]
[1727808161551,4.06495612,2509.0,2508.6,3.9862]
[1727808162151,4.06495612,2509.0,2507.8,11.63574355]
[1727808162152,0.7582,2508.7,2507.9,0.7707]
[1727808162383,0.7582,2508.7,2507.6,1.23768674]
[1727808162384,3.98697,2508.2,2507.7,3.98769]
[1727808162680,19.60868785,2508.6,2508.3,3.98663]
[1727808162837,19.53,2508.6,2508.3,3.98674]
[1727808163039,8.1382,2509.0,2508.3,3.98674]
[1727808163040,3.98588,2508.9,2508.4,3.98652]
[1727808163240,4.74399,2509.0,2508.5,3.98634]
[1727808163442,7.97175,2508.9,2508.4,4.860986]
[1727808163646,4.74392,2509.0,2508.5,3.98643]
[1727808163962,19.53,2509.1,2508.4,0.874396]
[1727808164182,19.53,2509.1,2508.2,0.7707]
[1727808164183,23.51556,2509.1,2508.7,3.98605]
[1727808164633,19.53,2509.1,2508.5,3.98632]
[1727808164833,19.53,2509.1,2508.6,3.98626]
[1727808164834,3.98572,2509.0,2508.6,3.98626]
[1727808165034,19.53,2509.1,2508.6,3.98626]
[1727808165035,19.53,2509.1,2508.6,3.98614]
[1727808165245,3.98565,2509.0,2508.7,0.398614]
[1727808166271,3.98699,2508.2,2507.8,3.98746]
[1727808166437,3.98731,2508.0,2507.7,0.8112]
[1727808166640,19.53,2508.7,2507.7,0.8112]
[1727808166641,3.98676,2508.3,2507.9,3.98734]
[1727808166951,3.98693,2508.2,2507.8,3.98755]
[1727808167148,2.427331,2508.6,2507.7,0.8112]
[1727808167360,3.98703,2508.2,2507.7,0.8112]
[1727808167681,3.98715,2508.1,2507.7,0.8112]
[1727808167842,3.98727,2508.0,2507.7,1.291105]
[1727808168036,3.98716,2508.1,2507.3,0.825]
[1727808168236,3.98716,2508.1,2507.5,3.98792]
[1727808168777,3.98716,2508.1,2507.6,3.98779]
[1727808168990,3.98688,2508.3,2507.7,0.797571]
[1727808169137,3.98689,2508.3,2507.8,4.79951]
[1727808169485,19.53,2508.4,2507.8,0.8121]
[1727808169666,19.53,2508.4,2508.1,3.98699]
[1727808169983,19.53,2508.4,2507.9,4.06703072]
[1727808169984,19.53,2508.4,2508.0,3.98721]
[1727808170150,3.98685,2508.3,2507.8,0.8121]
[1727808170342,3.98685,2508.3,2507.8,1.592068]
[1727808170546,3.987,2508.2,2507.8,1.592068]
[1727808170746,7.97373,2508.3,2507.8,1.592068]
[1727808170942,3.98716,2508.1,2507.6,3.98785]
[1727808171455,3.98717,2508.1,2507.5,3.98792]
[1727808171654,3.98717,2508.1,2507.6,3.98784]
[1727808171850,7.97393,2508.2,2507.6,3.98784]
[1727808172053,3.98712,2508.1,2507.6,3.98784]
[1727808172251,3.98724,2508.0,2507.4,4.80444]
[1727808172538,3.98724,2508.0,2507.5,3.0]
[1727808172866,3.98724,2508.0,2507.4,4.80444]
[1727808173036,0.07775977,2507.9,2507.4,4.80444]
[1727808173240,0.07775977,2507.9,2507.5,3.98798]
[1727808173680,0.07775977,2507.9,2507.6,3.98784]
[1727808173851,0.07775977,2507.9,2507.6,4.867068]
[1727808174051,3.98699,2508.2,2507.7,3.98757]
[1727808174267,0.07775096,2507.8,2507.6,8.854778]
[1727808174473,0.07765658,2507.7,2507.6,4.866998]
[1727808174672,0.07765658,2507.7,2507.6,10.58829552]
[1727808174904,19.53,2508.3,2508.0,3.98723]
[1727808175208,0.07795974,2508.2,2507.9,4.81104]
[1727808175368,0.07795974,2508.2,2508.0,0.879855]
[1727808175570,19.53,2508.3,2508.0,0.879855]
[1727808176080,0.07799831,2508.2,2508.0,0.879855]
[1727808176303,19.53,2508.3,2508.0,0.879855]
[1727808176664,0.07799831,2508.2,2508.0,0.879855]
[1727808176867,19.53,2508.3,2508.0,0.879855]
[1727808177169,0.07799831,2508.2,2508.0,0.879855]
[1727808177593,19.53,2508.3,2508.0,0.879855]
[1727808177796,0.07782735,2508.1,2508.0,0.879855]
[1727808178104,0.0779445,2508.1,2508.0,0.879855]
[1727808178261,19.53,2508.3,2508.0,0.879855]
[1727808178467,0.07790004,2508.2,2508.0,0.879855]
[1727808178680,19.53,2508.3,2508.1,0.9678205]
[1727808178883,19.53,2508.3,2507.9,4.81101]
[1727808178884,0.07790004,2508.2,2507.9,4.81101]
[1727808179096,23.51677,2508.3,2507.9,4.81101]
[1727808179280,0.07788963,2508.2,2507.9,4.81101]
[1727808179481,19.53,2508.3,2507.9,4.81101]
[1727808179685,0.0779609,2508.2,2507.9,9.279421]
[1727808179906,3.98662,2508.4,2507.9,5.292111]
[1727808180116,0.07804603,2508.3,2507.9,5.292111]
[1727808180323,0.07804603,2508.3,2507.9,5.292091]
[1727808180530,20.3593,2508.7,2508.3,3.98662]
[1727808180836,0.07815694,2508.6,2508.3,4.385412]
[1727808180990,0.07815694,2508.6,2508.3,7.9735]
[1727808181326,0.07809633,2508.5,2508.3,7.9735]
[1727808181507,3.98611,2508.8,2508.3,3.98675]
[1727808181708,0.07821754,2508.7,2508.3,8.372115]
[1727808181896,3.98599,2508.8,2508.3,4.385365]
[1727808182111,3.98599,2508.8,2508.3,0.398675]
[1727808182112,3.98641,2508.6,2508.3,0.398675]
[1727808182415,3.98641,2508.6,2508.1,3.987]
[1727808182416,0.07811803,2508.5,2508.1,3.987]
[1727808182731,0.07811803,2508.5,2508.1,3.98699]
[1727808183028,3.98613,2508.7,2508.2,3.98683]
[1727808183226,0.0754669,2508.4,2508.2,3.98683]
[1727808183396,4.78956,2509.0,2508.6,3.98628]
[1727808183846,3.98617,2508.7,2508.2,0.7771]
[1727808184018,3.98667,2508.4,2507.9,5.245511]
[1727808184189,3.98617,2508.7,2507.9,0.7771]
[1727808184190,19.53,2508.7,2507.9,0.7771]
[1727808184386,3.9871,2508.1,2507.6,4.76488]
[1727808184797,3.98726,2508.0,2507.6,4.76488]
[1727808184984,3.9871,2508.1,2507.7,3.98771]
[1727808185621,3.98646,2508.5,2507.9,3.98733]
[1727808185622,3.98653,2508.5,2507.9,3.98733]
[1727808185794,3.98645,2508.5,2508.0,4.46559003]
[1727808185998,0.7694,2508.9,2508.1,0.7771]
[1727808186216,4.7553,2508.9,2508.5,3.98642]
[1727808186435,3.98558,2509.1,2508.7,3.98612]
[1727808186436,3.98557,2509.1,2508.7,3.98612]
[1727808186724,3.98557,2509.1,2508.6,3.98625]
[1727808186910,3.98557,2509.1,2508.6,4.783517]
[1727808187116,3.98565,2509.0,2508.6,4.783517]
[1727808187488,3.98565,2509.0,2508.6,3.98625]
[1727808187693,3.98557,2509.1,2508.6,3.98619]
[1727808187995,0.07356151,2509.0,2508.5,4.06614828]
[1727808188221,4.05934151,2509.0,2508.5,4.06614828]
[1727808188527,3.98581,2508.9,2508.5,3.98643]
[1727808188713,0.0732936,2508.8,2508.5,4.783746]
[1727808189606,3.98622,2508.7,2508.4,3.0]
[1727808189787,3.98622,2508.7,2508.2,3.98677]
[1727808189788,3.98622,2508.7,2508.2,3.98685]
[1727808189989,0.07333142,2508.6,2508.2,3.98685]
[1727808190191,0.07333142,2508.6,2508.4,3.98659]
[1727808190497,3.98566,2509.0,2508.5,3.98644]
[1727808190687,0.07361441,2508.9,2508.5,0.80527541]
[1727808190887,0.07361441,2508.9,2508.5,0.07971929]
[1727808191200,3.98719,2508.1,2507.6,3.98778]
[1727808191396,0.7809,2508.4,2508.2,3.98684]
[1727808191703,0.07361441,2508.9,2508.2,3.98685]
[1727808191704,3.98616,2508.7,2508.2,3.98685]
[1727808192035,3.98616,2508.7,2508.2,3.98691]
[1727808192207,3.98597,2508.8,2508.3,3.98673]
[1727808192402,3.98613,2508.7,2508.4,0.797364]
[1727808193339,3.98629,2508.6,2508.4,0.797364]
[1727808193646,3.98613,2508.7,2508.4,0.797364]
[1727808193647,3.98614,2508.7,2508.4,0.797364]
[1727808193821,3.98628,2508.6,2508.4,0.797364]
[1727808194836,3.98628,2508.6,2508.1,7.7597]
[1727808195021,3.98614,2508.7,2508.2,3.98691]
[1727808195251,3.98614,2508.7,2508.2,3.98683]
[1727808195654,7.9724,2508.7,2508.2,3.98683]
[1727808196121,3.98614,2508.7,2508.2,3.98683]
[1727808196739,4.76682,2508.9,2508.1,3.7727]
[1727808196740,3.98597,2508.8,2508.3,4.8423164]
[1727808196948,3.98575,2509.0,2508.3,3.98664]
[1727808197148,3.98575,2509.0,2508.3,7.97329]
[1727808197149,3.98597,2508.8,2508.3,7.97329]
[1727808197316,3.98597,2508.8,2508.4,0.797329]
[1727808197818,7.97151,2509.0,2508.4,4.783769]
[1727808198014,19.53,2509.5,2508.7,4.64957854]
[1727808198234,23.51492,2509.5,2509.1,3.98549]
[1727808198464,4.8151,2509.6,2508.8,6.98583]
[1727808198465,3.98518,2509.3,2508.8,6.98583]
[1727808200023,3.9855,2509.1,2508.7,7.76475]
[1727808200239,4.81504,2509.6,2509.0,3.98564]
[1727808200240,3.98504,2509.4,2509.0,3.98564]
[1727808200615,4.81502,2509.6,2509.0,3.98556]
[1727808200812,3.98486,2509.5,2509.1,0.398556]
[1727808201014,3.98526,2509.3,2508.8,3.98589]
[1727808201231,3.98504,2509.4,2508.8,3.98589]
[1727808201438,7.9702,2509.4,2508.9,3.98574]
[1727808201659,3.98544,2509.2,2508.7,4.76482]
[1727808201808,3.98544,2509.2,2508.7,3.7787]
[1727808202016,3.98544,2509.2,2508.7,7.76481]
[1727808202445,3.98541,2509.2,2508.7,8.50586359]
[1727808202750,3.98528,2509.3,2508.8,3.98589]
[1727808202961,4.04740877,2509.2,2508.8,3.98589]
[1727808203851,4.04740877,2509.2,2508.7,8.50586359]
[1727808204152,0.06207877,2509.2,2508.8,3.98587]
[1727808204347,3.98519,2509.3,2508.8,3.98587]
[1727808204657,0.06217689,2509.2,2508.8,3.98587]
[1727808204955,3.98534,2509.2,2508.8,3.98587]
[1727808205248,0.06212596,2509.1,2508.8,3.98587]
[1727808206113,4.04764596,2509.1,2508.6,3.98615]
[1727808206319,4.04764596,2509.1,2508.4,5.545239]
[1727808206320,0.84282596,2509.1,2508.7,3.98605]
[1727808206516,3.98573,2509.0,2508.5,3.98635]
[1727808206754,0.06205371,2508.9,2508.3,3.98667]
[1727808206958,3.98605,2508.8,2508.4,3.98659]
[1727808207111,0.06167059,2508.7,2508.4,3.98659]
[1727808207453,3.98605,2508.8,2508.3,3.98665]
[1727808207663,3.98605,2508.8,2508.4,3.98651]
[1727808207664,0.06168169,2508.6,2508.4,3.98651]
[1727808207859,0.06173747,2508.7,2508.4,3.98651]
[1727808208161,3.98597,2508.8,2508.4,3.98651]
[1727808208364,0.06168207,2508.7,2508.4,3.98651]
[1727808208519,3.98597,2508.8,2508.1,4.77144]
[1727808208520,3.98637,2508.6,2508.1,4.77144]
[1727808208720,0.06156088,2508.5,2508.2,3.98689]
[1727808208953,3.98647,2508.5,2508.1,3.98694]
[1727808209152,0.06150028,2508.4,2508.1,3.98694]
[1727808210428,3.98677,2508.3,2507.8,4.80918]
[1727808210643,3.98677,2508.3,2507.5,0.7532]
[1727808210849,0.7606,2508.5,2507.3,0.7532]
[1727808210850,0.7746,2508.0,2507.3,0.7532]
[1727808211015,0.7746,2508.0,2507.0,0.8032]
[1727808211016,20.3046,2508.0,2507.0,0.8032]
[1727808211220,5.78157632,2508.2,2506.8,0.9265662]
[1727808211221,3.98828,2507.4,2506.8,0.9265662]
[1727808211459,0.8104,2507.5,2506.9,4.48053662]
[1727808211756,0.0607145,2507.4,2507.0,3.98873]
[1727808212118,4.0489745,2507.4,2506.9,0.49157662]
[1727808212518,4.0489745,2507.4,2507.0,3.98871]
[1727808212519,0.0607145,2507.4,2507.0,3.98871]
[1727808212742,0.0607145,2507.4,2507.1,3.98865]
[1727808212960,0.0607145,2507.4,2507.2,0.797736]
[1727808213124,3.98804,2507.5,2507.2,0.797736]
[1727808213326,4.04851756,2507.4,2506.9,0.49157662]
[1727808213531,4.04851756,2507.4,2506.9,4.48052662]
[1727808213739,4.04851756,2507.4,2507.0,3.98882]
[1727808213960,0.06024756,2507.4,2507.1,0.44803966]
[1727808214164,4.04852756,2507.4,2507.1,0.44803966]
[1727808214461,3.98835,2507.3,2506.9,0.49157662]
[1727808214767,0.06012623,2507.2,2506.9,0.44157662]
[1727808214926,7.97649,2507.4,2506.9,4.43053662]
[1727808215121,4.0485569,2507.3,2506.9,0.44157662]
[1727808215323,0.0601869,2507.3,2507.1,3.98865]
[1727808215551,3.98803,2507.6,2507.1,3.98865]
[1727808215858,0.06026241,2507.5,2507.1,3.98865]
[1727808216563,0.06026241,2507.5,2507.2,4.04719984]
[1727808216871,0.06026241,2507.5,2507.0,3.98874]
[1727808216872,4.04834241,2507.5,2507.0,3.98874]
[1727808217054,3.98827,2507.4,2507.0,3.98881]
[1727808217424,0.06009037,2507.3,2507.0,3.98881]
[1727808217675,0.06009037,2507.3,2506.9,3.98898]
[1727808218131,0.06009037,2507.3,2506.8,0.9265662]
[1727808218332,4.04851037,2507.3,2506.8,4.9155962]
[1727808218560,4.04851037,2507.3,2506.8,0.9265662]
[1727808218561,3.98868,2507.1,2506.8,0.9265662]
[1727808218760,0.05990355,2507.0,2506.8,0.9265662]
[1727808219353,3.98851,2507.2,2506.8,4.9157062]
[1727808219680,0.05996422,2507.1,2506.8,4.9157062]
[1727808220085,4.75692,2507.3,2506.8,0.9265662]
[1727808220086,0.7685,2507.3,2506.8,0.9265662]
[1727808220395,4.75685,2507.3,2506.8,0.9265662]
[1727808220672,0.05997183,2507.2,2506.9,3.98897]
[1727808221043,4.75695,2507.3,2506.8,4.9156062]
[1727808221382,0.05995956,2507.2,2506.9,3.98897]
[1727808221585,0.05995956,2507.2,2506.8,0.9265662]
[1727808221586,4.04857956,2507.2,2506.8,0.9265662]
[1727808221757,3.98862,2507.2,2506.8,4.9156962]
[1727808222075,0.0598989,2507.1,2506.8,4.9156962]
[1727808222444,0.0598989,2507.1,2506.8,4.1125062]
[1727808222643,0.0598989,2507.1,2506.8,4.1124362]
[1727808222848,8.74528,2507.3,2506.8,4.1124362]
[1727808223055,0.05983823,2507.0,2506.8,4.1124362]
[1727808223272,3.98855,2507.2,2506.8,4.1124362]
[1727808223458,0.05977756,2506.9,2506.8,4.1124362]
[1727808223682,3.98855,2507.2,2506.8,4.1124362]
[1727808223994,4.75685,2507.3,2506.8,4.99803482]
[1727808224165,0.0598989,2507.1,2506.8,4.99803482]
[1727808224373,4.75685,2507.3,2506.8,4.99803482]
[1727808224553,0.05995956,2507.2,2506.8,4.99803482]
[1727808224757,8.74531,2507.3,2506.8,4.99803482]
[1727808224968,0.05995956,2507.2,2506.8,4.99803482]
[1727808225164,8.74531,2507.3,2506.8,4.99803482]
[1727808225396,4.04846956,2507.2,2506.8,4.99801482]
[1727808226597,4.04846956,2507.2,2506.8,4.99800482]
[1727808226800,0.05995956,2507.2,2506.9,3.98899]
[1727808227088,0.05995956,2507.2,2506.8,4.99808482]
[1727808227300,4.75686,2507.3,2506.8,4.99808482]
[1727808227484,0.0598989,2507.1,2506.8,4.99808482]
[1727808227686,0.05995956,2507.2,2506.9,3.98889]
[1727808227883,0.05983823,2507.0,2506.9,3.98889]
[1727808228087,4.75686,2507.3,2506.9,3.98889]
[1727808228273,0.0598527,2507.0,2506.9,3.98889]
[1727808228470,4.75686,2507.3,2506.8,1.00896482]
[1727808228700,0.0598527,2507.0,2506.8,4.1124962]
[1727808228904,3.98817,2507.5,2506.9,0.05849531]
[1727808229097,3.98804,2507.5,2507.0,7.97745]
[1727808229406,3.98836,2507.3,2506.9,3.98897]
[1727808230171,3.98835,2507.3,2506.8,4.1123862]
[1727808230701,3.98835,2507.3,2506.8,4.99795382]
[1727808230900,3.98835,2507.3,2506.8,1.00893382]
[1727808231087,3.98835,2507.3,2506.8,4.99801382]
[1727808231470,3.9883,2507.4,2506.9,3.98884]
[1727808232069,3.98836,2507.3,2506.9,3.98884]
[1727808232273,3.9883,2507.4,2506.8,4.99799382]
[1727808232475,3.9883,2507.4,2506.9,3.98892]
[1727808232476,3.98828,2507.4,2506.9,3.98892]
[1727808233175,0.05789887,2507.3,2506.9,3.98892]
[1727808233380,4.04627887,2507.3,2506.9,3.98892]
[1727808233703,0.05789887,2507.3,2507.2,3.98851]
[1727808234224,19.53,2507.7,2507.4,3.98818]
[1727808234387,3.98756,2507.8,2507.4,4.06793428]
[1727808234712,3.98795,2507.6,2507.1,0.7763]
[1727808234960,3.98805,2507.5,2507.1,4.76497]
[1727808235100,0.481752,2507.8,2507.1,4.76497]
[1727808235285,3.98805,2507.5,2507.1,4.76497]
[1727808235481,3.98827,2507.4,2507.0,3.0]
[1727808235901,3.9882,2507.4,2506.8,7.8663962]
[1727808236067,3.98837,2507.3,2506.9,1.25216138]
[1727808236271,3.98837,2507.3,2506.9,5.24114138]
[1727808236474,20.3602,2507.9,2507.1,4.65521757]
[1727808236738,14.21878243,2508.9,2507.7,4.65521757]
[1727808236739,2.087626,2508.4,2507.7,4.65521757]
[1727808237023,2.087626,2508.4,2507.8,4.26872176]
[1727808237024,6.074326,2508.4,2507.8,4.26872176]
[1727808237185,3.98709,2508.1,2507.8,0.8032]
[1727808237388,2.087626,2508.4,2507.8,0.8032]
[1727808237389,3.98705,2508.2,2507.8,0.8032]
[1727808238607,6.074226,2508.4,2507.8,4.79068]
[1727808238821,6.074226,2508.4,2507.9,3.98736]
[1727808239122,6.074226,2508.4,2507.8,4.79068]
[1727808239292,6.074226,2508.4,2507.8,4.87042168]
[1727808239493,6.074226,2508.4,2507.8,8.85789168]
[1727808239737,3.9869,2508.3,2507.8,0.8032]
[1727808239893,3.9869,2508.3,2507.6,3.98775]
[1727808240088,3.98709,2508.1,2507.5,4.78982]
[1727808240328,3.98694,2508.2,2507.6,3.98775]
[1727808240892,3.98715,2508.1,2507.6,3.98775]
[1727808241097,4.784552,2508.1,2507.6,3.98775]
[1727808241407,0.797402,2508.1,2507.7,3.9876]
[1727808241624,4.80175,2508.0,2507.5,7.97583]
[1727808241794,0.8144,2508.0,2507.5,3.9879]
[1727808241997,4.80165,2508.0,2507.5,3.9879]
[1727808242197,0.8144,2508.0,2507.6,3.98786]
[1727808242454,0.8144,2508.0,2507.5,3.9879]
[1727808242894,5.281809,2508.0,2507.5,3.9879]
[1727808243296,5.281809,2508.0,2507.5,7.97585]
[1727808243620,1.294549,2508.0,2507.6,3.98787]
[1727808244191,5.281789,2508.0,2507.6,3.98787]
[1727808244430,3.98749,2507.9,2507.4,3.98818]
[1727808244739,5.281789,2508.0,2507.4,3.98818]
[1727808244740,1.294549,2508.0,2507.6,3.98786]
[1727808244911,1.294549,2508.0,2507.5,3.98803]
[1727808245234,1.294549,2508.0,2507.6,3.98786]
[1727808245541,1.294549,2508.0,2507.3,0.8101]
[1727808245542,3.98744,2507.9,2507.4,3.98809]
[1727808245830,5.281869,2508.0,2507.4,3.98809]
[1727808246138,3.98718,2508.1,2507.5,3.98801]
[1727808246303,0.7727,2508.1,2507.5,3.98801]
[1727808246643,0.7727,2508.1,2507.2,3.98849]
[1727808246644,3.98767,2507.8,2507.2,3.98849]
[1727808246936,3.98773,2507.7,2507.2,3.98849]
[1727808247123,3.98767,2507.8,2506.8,0.8804662]
[1727808247124,3.9883,2507.4,2506.8,0.8804662]
[1727808247338,6.21575757,2507.6,2506.8,4.8694662]
[1727808247339,4.75087,2507.6,2506.8,4.8694662]
[1727808247641,4.75087,2507.6,2507.1,3.98865]
[1727808248196,0.04854421,2507.5,2507.1,3.98865]
[1727808249138,0.04854421,2507.5,2507.0,3.9887]
[1727808249139,4.03659421,2507.5,2507.0,3.9887]
[1727808249313,4.03659421,2507.5,2507.0,4.06846588]
[1727808249314,0.04854421,2507.5,2507.0,4.06846588]
[1727808249511,0.04854421,2507.5,2507.1,8.64384757]
[1727808249725,0.04854421,2507.5,2507.3,3.98825]
[1727808249979,3.98764,2507.8,2507.3,3.98825]
[1727808250138,0.04843503,2507.4,2507.3,3.98825]
[1727808250343,3.98764,2507.8,2507.1,8.64377757]
[1727808250344,3.98764,2507.8,2507.2,3.98843]
[1727808250506,0.04843503,2507.4,2507.2,3.98843]
[1727808250835,3.98791,2507.6,2507.2,0.96040625]
[1727808251041,0.04839864,2507.3,2507.1,3.98866]
[1727808251248,3.98788,2507.6,2507.1,3.98866]
[1727808251457,3.98788,2507.6,2507.2,3.98847]
[1727808251738,3.98772,2507.7,2507.1,3.98865]
[1727808251739,3.98804,2507.5,2507.1,3.98865]
[1727808252106,3.9879,2507.6,2507.1,7.9772]
[1727808252305,3.9879,2507.6,2507.1,3.98855]
[1727808252814,0.8001,2507.9,2507.0,0.96041497]
[1727808253011,3.98791,2507.6,2507.1,3.0]
[1727808253233,3.98791,2507.6,2507.0,3.0]
[1727808253234,3.9882,2507.4,2507.0,3.0]
[1727808254545,3.9882,2507.4,2507.0,6.98881]
[1727808257487,0.76,2508.1,2507.3,3.7796]
[1727808257628,3.1712096,2508.4,2507.3,3.7796]
[1727808257629,4.74678,2508.3,2507.8,3.98746]
[1727808257826,6.074326,2508.4,2507.9,4.06710727]
[1727808257827,2.087626,2508.4,2507.9,4.06710727]
[1727808258011,6.074236,2508.4,2507.9,4.06710727]
[1727808258210,3.98678,2508.3,2507.9,3.0]
[1727808258537,3.98678,2508.3,2507.9,6.98737]
[1727808259133,2.087626,2508.4,2507.9,6.98737]
[1727808259449,2.087626,2508.4,2508.0,4.06687435]
[1727808259608,2.087626,2508.4,2508.0,8.05400435]
[1727808259809,2.087626,2508.4,2508.0,9.15763044]
[1727808260015,2.087626,2508.4,2508.1,0.07973428]
[1727808260244,2.087626,2508.4,2508.1,4.06674428]
[1727808260809,2.087626,2508.4,2508.0,1.18336044]
[1727808260810,6.074246,2508.4,2508.0,1.18336044]
[1727808261011,6.074246,2508.4,2507.9,10.97466]
[1727808261211,6.074246,2508.4,2507.9,6.98728]
[1727808261821,6.074246,2508.4,2507.9,3.0]
[1727808261822,2.087626,2508.4,2507.9,3.0]
[1727808262343,6.074306,2508.4,2508.0,3.98722]
[1727808262548,2.087626,2508.4,2507.8,7.76704]
[1727808262705,2.087626,2508.4,2508.0,3.98723]
[1727808262910,6.074296,2508.4,2508.0,3.98723]
[1727808263110,0.04224312,2508.3,2508.0,3.98723]
[1727808265339,0.04224312,2508.3,2507.9,3.98739]
[1727808265673,0.04224312,2508.3,2507.8,7.76702]
[1727808265674,1.05256503,2508.3,2507.7,3.98758]
[1727808265981,3.98741,2507.9,2507.3,3.98824]
[1727808266273,3.98772,2507.7,2507.3,3.98824]
[1727808266432,0.8123,2507.7,2507.3,3.98824]
[1727808266634,0.04198123,2507.6,2507.3,3.98824]
[1727808266879,0.04198123,2507.6,2507.1,0.7857]